bitfinex-derivatives/quotes_SOLF0:USTF0_20250819
["timestamp","ask_amount","ask_price","bid_price","bid_amount"]
[1755599709857,3.03,181.4,181.31,122.97969088]
[1755599710055,3.03,181.44,181.34,3.63786818]
[1755599710256,4.35068816,181.43,181.34,3.63786818]
[1755599710556,7.38068816,181.42,181.35,5.5123]
[1755599710753,3.03,181.42,181.35,5.5123]
[1755599712254,3.03,181.42,181.34,9.15056818]
[1755599713957,3.03,181.4,181.31,129.11178809]
[1755599714157,3.03,181.4,181.31,122.97969088]
[1755599714554,3.03,181.4,181.32,5.5134]
[1755599716661,3.03,181.4,181.33,5.513]
[1755599717461,3.03,181.43,181.34,3.63786818]
[1755599717662,4.34853373,181.42,181.34,3.63786818]
[1755599717861,3.03,181.43,181.34,3.63786818]
[1755599718062,3.03,181.41,181.31,129.11178809]
[1755599719157,3.03,181.41,181.33,5.513]
[1755599720066,3.03,181.41,181.34,5.5127]
[1755599720864,3.03,181.41,181.33,5.513]
[1755599721764,3.03,181.41,181.32,5.5134]
[1755599722672,3.63786818,181.45,181.31,119.3418227]
[1755599722673,3.15,181.39,181.31,119.3418227]
[1755599724972,3.15,181.39,181.33,5.5131]
[1755599726181,3.15,181.39,181.32,9.15116818]
[1755599726476,3.15,181.39,181.32,3.63786818]
[1755599726667,3.15,181.39,181.31,119.3418227]
[1755599726867,3.15,181.39,181.32,5.5134]
[1755599727881,3.15,181.39,181.31,124.8555227]
[1755599729483,3.15,181.39,181.31,119.3418227]
[1755599731479,3.15,181.39,181.31,124.8553227]
[1755599733784,3.15,181.39,181.32,5.5134]
[1755599735081,3.15,181.39,181.31,124.8554227]
[1755599736782,3.15,181.39,181.31,119.3418227]
[1755599739283,3.15,181.39,181.31,124.8555227]
[1755599739583,3.15,181.39,181.31,119.3418227]
[1755599740477,3.15,181.39,181.33,5.513]
[1755599741882,3.15,181.44,181.34,3.63786818]
[1755599742083,4.36539455,181.43,181.34,3.63786818]
[1755599742279,3.15,181.44,181.34,3.63786818]
[1755599742479,4.36487688,181.43,181.37,5.5119]
[1755599742682,3.15,181.44,181.37,5.5119]
[1755599742883,4.36482268,181.43,181.36,5.5121]
[1755599743079,3.15,181.44,181.36,5.5121]
[1755599743278,3.15,181.42,181.36,5.5121]
[1755599745084,3.15,181.42,181.35,5.5124]
[1755599746086,3.15,181.42,181.36,5.5122]
[1755599746789,3.15,181.42,181.35,5.5124]
[1755599750391,3.15,181.42,181.36,5.5122]
[1755599752385,3.63786818,181.49,181.4,3.63786818]
[1755599752386,2.9,181.47,181.4,3.63786818]
[1755599752581,4.36522938,181.46,181.4,3.63786818]
[1755599752785,2.9,181.47,181.4,3.63786818]
[1755599752985,2.9,181.47,181.41,5.5105]
[1755599753692,2.9,181.47,181.4,3.63786818]
[1755599753888,4.36387737,181.46,181.4,3.63786818]
[1755599754088,2.9,181.47,181.41,5.5106]
[1755599754890,2.9,181.47,181.4,9.14876818]
[1755599757793,2.9,181.47,181.41,5.5107]
[1755599759097,2.9,181.47,181.42,5.5104]
[1755599759691,6.10290654,181.53,181.42,5.5104]
[1755599759891,7.08057637,181.52,181.42,5.5104]
[1755599760094,2.9,181.47,181.42,5.5104]
[1755599760294,2.9,181.47,181.43,5.5099]
[1755599760492,2.9,181.52,181.43,5.5099]
[1755599760695,4.37287416,181.51,181.43,3.63786818]
[1755599760895,2.9,181.52,181.43,3.63786818]
[1755599762192,2.9,181.52,181.46,9.14706818]
[1755599762392,2.9,181.52,181.46,3.63786818]
[1755599762990,2.9,181.59,181.46,3.63786818]
[1755599763188,2.9,181.57,181.47,5.5086]
[1755599763394,4.36798893,181.56,181.49,3.63786818]
[1755599763597,2.9,181.55,181.49,3.63786818]
[1755599766491,2.9,181.55,181.46,3.63786818]
[1755599768496,2.9,181.55,181.46,9.14676818]
[1755599769200,2.9,181.55,181.46,3.63786818]
[1755599770101,2.9,181.55,181.49,3.63786818]
[1755599772289,2.9,181.61,181.49,3.63786818]
[1755599772504,2.9,181.59,181.49,3.63786818]
[1755599773402,2.9,181.59,181.49,9.14606818]
[1755599774403,2.9,181.59,181.49,3.63786818]
[1755599775100,2.9,181.59,181.49,9.14586818]
[1755599776304,2.9,181.59,181.49,3.63786818]
[1755599777703,2.9,181.59,181.48,5.5084]
[1755599778603,2.9,181.59,181.47,9.14656818]
[1755599778804,2.9,181.57,181.47,9.14656818]
[1755599779009,2.9,181.57,181.48,5.5084]
[1755599779905,2.9,181.57,181.47,9.14656818]
[1755599780104,2.9,181.57,181.47,3.63786818]
[1755599781309,2.9,181.57,181.49,5.508]
[1755599781511,2.9,181.57,181.47,3.63786818]
[1755599782511,2.9,181.57,181.48,5.5084]
[1755599782709,2.9,181.57,181.47,3.63786818]
[1755599783011,4.35100882,181.56,181.44,3.63786818]
[1755599783199,4.35100882,181.55,181.44,3.63786818]
[1755599783403,3.17,181.54,181.44,3.63786818]
[1755599785008,3.17,181.54,181.46,5.5091]
[1755599790706,3.17,181.54,181.45,5.5093]
[1755599790904,3.17,181.54,181.44,3.63786818]
[1755599791411,3.17,181.54,181.46,5.5091]
[1755599791808,3.17,181.54,181.44,3.63786818]
[1755599792010,3.17,181.57,181.44,3.63786818]
[1755599792209,3.17,181.55,181.44,3.63786818]
[1755599792413,3.17,181.55,181.47,3.63786818]
[1755599793006,3.17,181.55,181.48,5.5084]
[1755599794608,3.17,181.55,181.49,5.5081]
[1755599797112,3.17,181.54,181.5,5.5079]
[1755599797312,3.17,181.54,181.47,3.63786818]
[1755599798219,3.17,181.54,181.49,5.5081]
[1755599798411,6.10290654,181.6,181.49,5.5081]
[1755599798412,3.17,181.53,181.49,5.5081]
[1755599799013,6.10290654,181.6,181.47,3.63786818]
[1755599799212,3.17,181.57,181.47,3.63786818]
[1755599799411,3.17,181.55,181.44,3.63786818]
[1755599799610,4.35539185,181.54,181.44,3.63786818]
[1755599799808,3.17,181.53,181.47,5.5086]
[1755599800017,3.17,181.53,181.44,3.63786818]
[1755599800419,6.10290654,181.58,181.41,3.63786818]
[1755599800420,3.17,181.51,181.41,3.63786818]
[1755599800715,3.63786818,181.54,181.38,9.76996539]
[1755599800716,3.17,181.49,181.38,9.76996539]
[1755599800912,3.17,181.49,181.42,5.5103]
[1755599803415,3.17,181.49,181.41,5.5106]
[1755599803716,3.17,181.47,181.41,5.5106]
[1755599803920,3.17,181.47,181.42,5.5103]
[1755599804419,6.10290654,181.52,181.42,5.5103]
[1755599804619,7.06977649,181.51,181.42,5.5103]
[1755599804820,3.17,181.49,181.42,5.5103]
[1755599805116,4.36172437,181.48,181.42,5.5103]
[1755599805317,3.17,181.49,181.42,5.5103]
[1755599805515,4.36052966,181.48,181.42,5.5103]
[1755599805816,3.17,181.49,181.43,5.51]
[1755599806018,3.17,181.49,181.38,3.63786818]
[1755599806220,3.17,181.49,181.44,5.5096]
[1755599806419,3.17,181.49,181.38,9.76996539]
[1755599806718,3.17,181.49,181.43,5.5099]
[1755599807215,3.17,181.49,181.42,5.5103]
[1755599807419,4.35922659,181.48,181.42,5.5103]
[1755599807612,3.17,181.49,181.42,5.5103]
[1755599807808,4.35934142,181.48,181.42,5.5103]
[1755599808013,3.17,181.49,181.42,5.5103]
[1755599808319,4.35934142,181.48,181.42,5.5103]
[1755599808521,3.17,181.49,181.42,5.5103]
[1755599808813,4.35839694,181.48,181.42,5.5103]
[1755599809019,3.17,181.49,181.42,5.5103]
[1755599810721,3.17,181.49,181.43,5.51]
[1755599813421,3.17,181.49,181.44,5.5096]
[1755599814617,3.17,181.49,181.45,5.5093]
[1755599814819,2.9,181.52,181.44,3.63786818]
[1755599815421,2.9,181.52,181.47,5.5086]
[1755599815615,3.63786818,181.58,181.44,3.63786818]
[1755599815820,2.9,181.55,181.44,3.63786818]
[1755599816017,4.27219002,181.54,181.44,3.63786818]
[1755599816218,2.9,181.55,181.44,3.63786818]
[1755599816420,4.27244344,181.54,181.48,5.5083]
[1755599816620,2.9,181.55,181.48,5.5083]
[1755599816824,4.27244344,181.54,181.48,5.5083]
[1755599817121,2.9,181.55,181.48,5.5083]
[1755599817320,4.27270596,181.54,181.48,5.5083]
[1755599817623,2.9,181.55,181.48,5.5083]
[1755599817822,4.27270596,181.54,181.48,5.5083]
[1755599818021,2.9,181.51,181.48,5.5083]
[1755599818223,2.9,181.5,181.47,5.5087]
[1755599818925,2.9,181.5,181.46,5.509]
[1755599819429,2.9,181.53,181.46,5.509]
[1755599820320,3.63786818,181.58,181.44,3.63786818]
[1755599820321,2.9,181.57,181.47,5.5088]
[1755599820522,2.9,181.55,181.47,5.5088]
[1755599820726,4.24594681,181.54,181.47,5.5088]
[1755599821019,2.9,181.55,181.47,3.63786818]
[1755599821422,2.9,181.58,181.5,3.63786818]
[1755599821623,2.9,181.58,181.5,9.14566818]
[1755599823126,2.9,181.58,181.47,3.63786818]
[1755599823326,2.9,181.56,181.44,3.63786818]
[1755599823518,2.9,181.54,181.44,3.63786818]
[1755599823723,2.9,181.54,181.45,5.5092]
[1755599824527,2.9,181.54,181.44,9.14756818]
[1755599825227,2.9,181.54,181.45,5.5093]
[1755599827724,4.28729236,181.53,181.45,5.5093]
[1755599827930,2.9,181.52,181.44,9.14746818]
[1755599828130,2.9,181.52,181.41,3.63786818]
[1755599828831,2.9,181.52,181.43,5.5099]
[1755599830431,2.9,181.52,181.44,5.5097]
[1755599831528,3.63786818,181.55,181.45,5.5093]
[1755599831732,7.00063459,181.54,181.44,3.63786818]
[1755599831929,2.9,181.55,181.44,3.63786818]
[1755599832130,2.9,181.55,181.5,5.5077]
[1755599832325,2.9,181.55,181.47,3.63786818]
[1755599834332,2.9,181.55,181.5,5.5077]
[1755599835334,2.9,181.55,181.47,3.63786818]
[1755599835539,2.9,181.62,181.5,3.63786818]
[1755599835739,2.9,181.6,181.5,3.63786818]
[1755599836243,2.9,181.58,181.51,5.5074]
[1755599837142,2.9,181.58,181.52,5.5072]
[1755599842949,2.9,181.58,181.51,5.5075]
[1755599843143,2.9,181.58,181.5,3.63786818]
[1755599843550,2.9,181.58,181.5,9.14576818]
[1755599845050,2.9,181.58,181.5,3.63786818]
[1755599845950,2.9,181.58,181.5,9.14576818]
[1755599846948,2.9,181.58,181.51,5.5075]
[1755599847147,2.9,181.58,181.5,3.63786818]
[1755599847549,2.9,181.58,181.51,5.5074]
[1755599851353,2.9,181.58,181.52,5.5073]
[1755599853358,2.9,181.58,181.45,6.13209721]
[1755599853657,2.9,181.58,181.51,3.63786818]
[1755599854256,2.9,181.58,181.52,5.5073]
[1755599864861,2.9,181.58,181.51,9.14536818]
[1755599865961,2.9,181.58,181.52,5.5073]
[1755599866256,2.9,181.58,181.51,3.63786818]
[1755599866451,2.9,181.58,181.54,3.63786818]
[1755599866651,2.95,181.61,181.54,3.63786818]
[1755599867561,2.95,181.66,181.54,3.63786818]
[1755599867862,2.95,181.64,181.57,3.63786818]
[1755599868060,2.95,181.62,181.57,3.63786818]
[1755599868364,2.95,181.67,181.57,3.63786818]
[1755599868554,2.95,181.65,181.57,3.63786818]
[1755599868758,2.95,181.65,181.58,5.5054]
[1755599873567,2.95,181.65,181.57,9.14356818]
[1755599875372,2.95,181.65,181.58,5.5054]
[1755599878667,2.95,181.65,181.57,3.63786818]
[1755599878867,2.95,181.65,181.59,5.5052]
[1755599879069,2.95,181.65,181.57,3.63786818]
[1755599879271,2.95,181.65,181.6,3.63786818]
[1755599880270,2.86,181.68,181.6,3.63786818]
[1755599880971,2.86,181.72,181.63,3.63786818]
[1755599881272,2.86,181.7,181.63,3.63786818]
[1755599881475,2.86,181.73,181.66,3.63786818]
[1755599881771,4.31738602,181.72,181.66,3.63786818]
[1755599881972,2.86,181.73,181.66,3.63786818]
[1755599882569,2.86,181.73,181.67,5.5026]
[1755599882875,2.86,181.73,181.66,3.63786818]
[1755599883068,2.86,181.73,181.69,3.63786818]
[1755599884068,2.86,181.82,181.68,9.14006818]
[1755599884271,2.86,181.8,181.68,9.14006818]
[1755599884477,2.86,181.78,181.68,9.14006818]
[1755599884782,2.86,181.78,181.71,3.63786818]
[1755599885876,2.86,181.78,181.71,9.13926818]
[1755599887276,2.86,181.78,181.71,3.63786818]
[1755599889576,2.86,181.78,181.72,5.5011]
[1755599889775,2.86,181.78,181.71,3.63786818]
[1755599889974,2.86,181.78,181.72,5.5012]
[1755599893077,2.86,181.78,181.73,5.501]
[1755599893578,2.86,181.77,181.71,3.63786818]
[1755599894974,2.86,181.77,181.72,5.5012]
[1755599895877,2.86,181.77,181.73,5.501]
[1755599896680,2.86,181.77,181.74,5.5006]
[1755599896983,2.86,181.77,181.71,3.63786818]
[1755599897283,2.86,181.84,181.73,5.5008]
[1755599898480,2.86,181.84,181.71,3.63786818]
[1755599898780,3.63786818,181.82,181.62,73.0083]
[1755599898979,3.63786818,181.79,181.68,3.63786818]
[1755599899181,3.63786818,181.79,181.65,3.63786818]
[1755599899182,2.86,181.78,181.65,3.63786818]
[1755599899370,2.86,181.78,181.67,5.5026]
[1755599901083,2.86,181.78,181.68,5.5024]
[1755599901683,2.86,181.78,181.67,5.5027]
[1755599902779,2.86,181.78,181.66,5.503]
[1755599902987,3.63786818,181.73,181.61,3.63786818]
[1755599903181,2.96,181.72,181.61,3.63786818]
[1755599903381,2.96,181.72,181.62,5.5042]
[1755599904284,2.96,181.72,181.61,3.63786818]
[1755599904476,2.96,181.72,181.64,3.63786818]
[1755599904784,2.96,181.72,181.66,5.5029]
[1755599905286,2.96,181.72,181.67,5.5028]
[1755599905484,2.96,181.78,181.67,3.63786818]
[1755599906081,2.96,181.78,181.7,3.63786818]
[1755599906773,2.96,181.78,181.71,5.5015]
[1755599908290,2.96,181.78,181.7,9.13966818]
[1755599908484,2.96,181.78,181.7,3.63786818]
[1755599908681,2.96,181.78,181.67,3.63786818]
[1755599909390,2.96,181.78,181.7,3.63786818]
[1755599909581,2.96,181.78,181.73,9.13876818]
[1755599909785,2.96,181.81,181.73,3.63786818]
[1755599913480,2.96,181.81,181.73,9.13876818]
[1755599913684,2.96,181.81,181.73,3.63786818]
[1755599914888,2.96,181.81,181.7,9.13946818]
[1755599915087,2.96,181.79,181.7,3.63786818]
[1755599915294,2.96,181.77,181.67,3.63786818]
[1755599915591,2.96,181.77,181.69,5.5019]
[1755599915780,2.96,181.77,181.67,3.63786818]
[1755599915985,2.96,181.77,181.67,9.14056818]
[1755599916580,2.96,181.77,181.66,5.5031]
[1755599916786,4.35885511,181.76,181.66,5.5031]
[1755599916982,3.63786818,181.8,181.66,5.5031]
[1755599916983,2.96,181.74,181.66,5.5031]
[1755599917183,2.96,181.74,181.6,122.01382193]
[1755599917389,2.96,181.72,181.62,3.63786818]
[1755599917887,4.36169354,181.71,181.62,3.63786818]
[1755599918094,2.96,181.72,181.63,5.504]
[1755599918290,4.36312348,181.71,181.63,5.504]
[1755599918491,2.96,181.72,181.63,5.504]
[1755599918791,4.36312381,181.71,181.63,5.504]
[1755599918991,2.96,181.72,181.63,5.504]
[1755599919189,2.96,181.72,181.62,3.63786818]
[1755599919592,2.96,181.72,181.65,5.5032]
[1755599919892,2.96,181.72,181.62,3.63786818]
[1755599920395,2.96,181.72,181.66,5.503]
[1755599921497,2.96,181.75,181.62,3.63786818]
[1755599921699,4.36791248,181.74,181.62,3.63786818]
[1755599921895,2.96,181.75,181.62,3.63786818]
[1755599922096,4.36791393,181.74,181.62,3.63786818]
[1755599922296,2.96,181.75,181.62,3.63786818]
[1755599922596,4.37041335,181.74,181.66,5.5029]
[1755599922795,2.96,181.73,181.66,5.5029]
[1755599923995,2.96,181.73,181.65,5.5034]
[1755599924200,2.96,181.73,181.62,3.63786818]
[1755599924391,4.3763544,181.72,181.62,3.63786818]
[1755599924595,2.96,181.71,181.63,5.5038]
[1755599924997,2.96,181.71,181.62,3.63786818]
[1755599925597,2.96,181.74,181.65,3.63786818]
[1755599925797,3.63786818,181.78,181.65,3.63786818]
[1755599925798,2.96,181.77,181.65,3.63786818]
[1755599925998,2.96,181.75,181.67,5.5026]
[1755599926401,2.96,181.75,181.65,3.63786818]
[1755599926602,2.96,181.75,181.68,5.5023]
[1755599926798,2.96,181.75,181.65,3.63786818]
[1755599927099,2.96,181.73,181.65,3.63786818]
[1755599928098,2.96,181.73,181.66,5.503]
[1755599928802,2.96,181.73,181.67,5.5027]
[1755599929006,2.96,181.73,181.65,3.63786818]
[1755599929502,2.96,181.8,181.68,3.63786818]
[1755599929707,2.96,181.78,181.68,3.63786818]
[1755599930308,2.96,181.78,181.69,5.502]
[1755599930708,2.96,181.78,181.68,9.14016818]
[1755599932208,4.3752884,181.77,181.68,9.14016818]
[1755599932404,3.63786818,181.81,181.68,9.14016818]
[1755599932405,2.95,181.76,181.68,9.14016818]
[1755599932609,2.95,181.76,181.68,3.63786818]
[1755599934002,2.95,181.76,181.69,5.502]
[1755599935113,2.95,181.76,181.68,9.14026818]
[1755599935815,2.95,181.76,181.69,5.5022]
[1755599936115,2.95,181.76,181.68,3.63786818]
[1755599936316,2.95,181.81,181.68,3.63786818]
[1755599936621,2.95,181.79,181.7,5.5017]
[1755599937106,2.95,181.79,181.71,9.13936818]
[1755599937314,2.95,181.79,181.71,3.63786818]
[1755599937704,2.95,181.79,181.71,9.13936818]
[1755599938108,2.95,181.79,181.72,5.5012]
[1755599940111,2.95,181.79,181.73,5.5008]
[1755599941307,2.95,181.79,181.7,4.55762361]
[1755599941308,2.95,181.87,181.74,9.13846818]
[1755599941514,2.95,181.85,181.74,9.13846818]
[1755599941714,6.96647101,181.86,181.74,9.13846818]
[1755599941715,2.95,181.83,181.74,9.13846818]
[1755599941914,2.95,181.83,181.72,3.63786818]
[1755599942415,2.95,181.83,181.73,5.5009]
[1755599942809,2.95,181.83,181.72,3.63786818]
[1755599943114,2.95,181.83,181.72,8.19549179]
[1755599943714,2.95,181.83,181.73,5.5008]
[1755599943914,6.10290654,181.9,181.75,3.63786818]
[1755599944117,2.95,181.87,181.75,3.63786818]
[1755599944323,4.27946251,181.86,181.76,5.5]
[1755599944517,2.95,181.85,181.76,5.5]
[1755599946922,2.95,181.85,181.77,5.4998]
[1755599947224,2.95,181.85,181.75,3.63786818]
[1755599947715,2.95,181.85,181.78,3.63786818]
[1755599948222,2.95,181.85,181.78,9.13736818]
[1755599948827,2.95,181.85,181.78,3.63786818]
[1755599956032,2.95,181.85,181.78,9.13726818]
[1755599957125,7.54531938,181.92,181.78,3.63786818]
[1755599957429,2.95,181.9,181.78,3.63786818]
[1755599957829,2.95,181.95,181.84,3.63786818]
[1755599958222,2.95,181.95,181.84,9.13546818]
[1755599958425,2.95,181.95,181.84,3.63786818]
[1755599959021,2.95,181.95,181.86,5.4971]
[1755599959931,2.95,181.95,181.85,5.4973]
[1755599960331,2.95,181.95,181.84,3.63786818]
[1755599961240,2.95,181.95,181.87,5.4965]
[1755599961826,2.95,181.95,181.88,5.4965]
[1755599962531,2.95,181.95,181.89,5.4962]
[1755599963125,2.95,181.95,181.87,3.63786818]
[1755599963433,2.95,181.95,181.9,9.13366818]
[1755599963938,2.95,181.95,181.9,3.63786818]
[1755599964838,3.63786818,182.02,181.9,3.63786818]
[1755599965038,2.9,181.94,181.9,3.63786818]
[1755599965432,2.9,181.94,181.88,3.63786818]
[1755599965824,2.9,181.94,181.89,5.4961]
[1755599966132,2.9,181.97,181.89,5.4961]
[1755599966332,2.9,181.97,181.88,3.63786818]
[1755599966634,2.9,181.97,181.88,9.13426818]
[1755599967032,2.9,182.01,181.88,3.63786818]
[1755599967243,2.9,182.01,181.91,3.63786818]
[1755599968729,2.9,182.01,181.93,5.495]
[1755599969031,2.9,182.01,181.91,3.63786818]
[1755599969224,2.9,182.01,181.94,5.4945]
[1755599969429,2.9,182.01,181.94,9.13236818]
[1755599969730,2.9,182.01,181.94,3.63786818]
[1755599970435,2.9,182.01,181.94,9.13236818]
[1755599971636,2.9,182.01,181.94,3.63786818]
[1755599974142,2.9,182.01,181.94,9.13256818]
[1755599974437,2.9,182.01,181.94,3.63786818]
[1755599974634,2.9,182.01,181.94,9.13246818]
[1755599974841,2.9,182.01,181.94,3.63786818]
[1755599977144,2.9,182.01,181.94,9.13246818]
[1755599978252,2.9,182.01,181.94,3.63786818]
[1755599979942,2.9,182.01,181.94,9.13236818]
[1755599981146,2.9,182.01,181.94,3.63786818]
[1755599983044,4.25814039,182.0,181.88,3.63786818]
[1755599983347,2.9,182.03,181.88,3.63786818]
[1755599983545,4.25943661,182.02,181.88,3.63786818]
[1755599983843,2.9,182.0,181.88,3.63786818]
[1755599984345,2.9,181.98,181.88,3.63786818]
[1755599984547,2.9,181.96,181.88,3.63786818]
[1755599986647,2.9,181.96,181.9,5.4958]
[1755599987644,2.9,181.96,181.88,3.63786818]
[1755599987846,2.9,181.96,181.85,3.63786818]
[1755599988051,4.26523691,181.95,181.85,3.63786818]
[1755599988347,2.9,181.96,181.85,3.63786818]
[1755599989349,2.9,181.96,181.87,5.4967]
[1755599990348,2.9,181.96,181.88,5.4964]
[1755599990544,2.9,182.01,181.88,3.63786818]
[1755599991144,2.9,182.01,181.92,5.4951]
[1755599992146,2.9,181.99,181.87,3.63786818]
[1755599992353,2.92,181.97,181.87,3.63786818]
[1755599992849,3.63786818,182.02,181.92,5.495]
[1755599993046,2.92,181.97,181.92,5.495]
[1755599993853,2.92,181.97,181.91,5.4956]
[1755599995047,2.92,181.97,181.87,3.63786818]
[1755599995653,2.92,181.97,181.91,5.4954]
[1755599996550,2.92,182.01,181.9,3.63786818]
[1755599996858,2.92,182.01,181.93,3.63786818]
[1755599997151,2.92,182.01,181.94,5.4945]
[1755599997546,2.92,182.01,181.95,5.4944]
[1755599998354,2.92,182.01,181.96,5.4941]
[1755599998553,2.92,182.04,181.96,5.4941]
[1755599998742,4.27730923,182.03,181.96,5.4941]
[1755599998948,2.92,182.04,181.96,5.4941]
[1755599999747,4.27916329,182.03,181.95,5.4943]
[1755599999948,2.92,182.04,181.93,3.63786818]
[1755600000149,4.27013663,182.03,181.96,5.494]
[1755600000349,4.27267218,182.02,181.93,3.63786818]
[1755600000653,2.92,182.04,181.93,3.63786818]
[1755600000862,4.2726155,182.03,181.96,5.4941]
[1755600001154,4.27558081,182.02,181.93,3.63786818]
[1755600001448,4.27569425,182.01,181.93,3.63786818]
[1755600001650,4.27569425,182.01,181.9,4.55078623]
[1755600001651,2.92,181.99,181.9,3.63786818]
[1755600001954,2.92,181.99,181.91,5.4954]
[1755600003159,2.92,181.99,181.92,5.4952]
[1755600004050,2.92,181.99,181.93,5.4949]
[1755600004257,9.02290654,182.06,181.93,3.63786818]
[1755600004455,9.88651935,182.05,181.93,3.63786818]
[1755600004747,2.92,182.03,181.93,3.63786818]
[1755600005053,4.28178643,182.02,181.93,3.63786818]
[1755600005260,2.92,182.03,181.96,3.63786818]
[1755600005655,2.92,182.03,181.97,5.4936]
[1755600005850,2.92,182.06,181.96,3.63786818]
[1755600006160,4.2820022,182.05,181.96,3.63786818]
[1755600006356,2.92,182.06,181.97,5.4937]
[1755600006557,4.28113662,182.05,181.96,3.63786818]
[1755600006860,4.28130466,182.04,181.98,5.4934]
[1755600007061,2.92,182.06,181.98,5.4934]
[1755600007252,4.28189409,182.05,181.98,5.4934]
[1755600007452,2.92,182.06,181.98,5.4934]
[1755600007658,4.28104931,182.05,181.98,5.4934]
[1755600007856,2.92,182.06,181.98,5.4934]
[1755600008057,4.28104931,182.05,181.98,5.4934]
[1755600008269,2.92,182.06,181.98,5.4934]
[1755600008460,4.28068424,182.05,181.98,5.4934]
[1755600008660,2.92,182.06,181.98,5.4934]
[1755600008861,4.28068424,182.05,181.98,5.4934]
[1755600009062,2.92,182.06,181.98,5.4934]
[1755600009266,4.28060425,182.05,181.98,5.4934]
[1755600009566,2.92,182.06,181.98,5.4934]
[1755600009758,4.27997268,182.05,181.98,5.4934]
[1755600010064,2.92,182.06,181.98,5.4934]
[1755600010264,2.92,182.04,181.96,3.63786818]
[1755600010462,2.92,182.09,181.96,3.63786818]
[1755600010664,2.92,182.07,181.96,3.63786818]
[1755600010860,4.27936369,182.06,181.96,3.63786818]
[1755600011061,9.74077472,182.11,181.96,3.63786818]
[1755600011062,2.92,182.05,181.96,3.63786818]
[1755600011357,2.92,182.05,181.98,5.4934]
[1755600013065,2.92,182.05,181.99,5.4932]
[1755600013267,15.0,182.04,181.99,3.63786818]
[1755600014364,17.92,182.04,181.99,3.63786818]
[1755600014567,2.92,182.03,181.99,3.63786818]
[1755600015162,2.92,182.03,181.94,4.55078623]
[1755600015362,2.92,182.03,181.98,3.63786818]
[1755600016364,2.92,182.02,181.98,3.63786818]
[1755600016661,15.0,182.04,181.98,3.63786818]
[1755600016869,2.92,182.03,181.94,3.63786818]
[1755600018066,2.92,182.03,181.92,5.4952]
[1755600018568,2.92,182.01,181.91,9.13336818]
[1755600018965,2.92,182.01,181.91,3.63786818]
[1755600019167,3.63786818,182.02,181.91,3.63786818]
[1755600019468,2.92,181.99,181.91,3.63786818]
[1755600019872,2.92,181.99,181.88,13.68505441]
[1755600020072,2.92,181.99,181.87,120.1581728]
[1755600020266,2.92,181.97,181.87,120.1581728]
[1755600020769,2.92,181.97,181.88,5.4964]
[1755600020972,2.92,181.97,181.89,3.63786818]
[1755600021972,2.92,181.97,181.9,5.4957]
[1755600022373,2.92,181.97,181.89,3.63786818]
[1755600022572,2.92,181.97,181.87,120.1581728]
[1755600022974,7.9151681,181.96,181.87,120.1581728]
[1755600023176,3.13,181.95,181.87,120.1581728]
[1755600023765,3.13,181.95,181.87,125.6547728]
[1755600023969,3.13,181.95,181.87,120.1581728]
[1755600024370,3.13,181.94,181.82,4.55078623]
[1755600024571,3.13,181.93,181.81,3.63786818]
[1755600024970,3.63786818,181.92,181.8,4.55078623]
[1755600025271,3.13,181.91,181.77,3.63786818]